Cogmind - Beta 11 @@@ ROGUE MODE // 2022.03.29 @ 13:34:00 Player: albenzo Result: Destroyed by as-94959 with Assembled Heavy Rifle Performance ------------- Evolutions (0) 0 Regions Visited (2) 400 Robots Destroyed (5) 25 Value Destroyed (193) 193 Prototype IDs (0) 0 Alien Tech Used (0) 0 Bonus (0) 0 TOTAL SCORE: 618 Bonus ------- None Cogmind --------- Core Integrity 0/250 Matter 179/300 Energy 181/250 System Corruption 0% Temperature Cool (0) Movement Treading (160) Location -10/Mines Parts ------- > --- POWER (1) -------- Ion Engine > --- PROPULSION (2) --- Light Treads Light Treads > --- UTILITY (2) ------ Small Storage Unit Utility Shielding > --- WEAPON (2) ------- Beamcaster > --- INVENTORY (8) ---- Medium Battery (150) Signal Interpreter Peak State ------------ > --- POWER ------------ Ion Engine > --- PROPULSION ------- Aluminum Leg Aluminum Leg > --- UTILITY ---------- Small Storage Unit Medium Battery > --- WEAPON ----------- Medium Laser Particle Gun > --- INVENTORY -------- Ion Engine Light Treads Light Treads Medium Battery Medium Matter Pod Core Shielding Grenade Launcher Mining Laser [Rating: 8] Favorites ----------- Power Ion Engine Engine Ion Engine Propulsion Aluminum Leg Treads Light Treads Leg Aluminum Leg Utility Small Storage Unit Device Seismic Detector Storage Small Storage Unit Protection Utility Shielding Weapon Particle Gun Energy Gun Particle Gun Launcher Grenade Launcher Build | -11 -10 -10 ------- Run | Scr Mat Min Slots Evolved . | . . . Power . | . . . Propulsion . | . . . Utility . | . . . Weapon . | . . . Parts Attached 26 | 7 9 10 Power 4 | 2 1 1 Engine 4 | 2 1 1 Core . | . . . Reactor . | . . . Propulsion 4 | 2 . 2 Treads 2 | . . 2 Leg 2 | 2 . . Wheel . | . . . Hover . | . . . Flight . | . . . Utility 8 | 1 4 3 Device 2 | . 1 1 Storage 4 | 1 3 . Processor . | . . . Hackware . | . . . Protection 2 | . . 2 Artifact . | . . . Weapon 10 | 2 4 4 Energy Gun 9 | 2 4 3 Energy Cannon . | . . . Ballistic Gun . | . . . Ballistic Cannon . | . . . Launcher 1 | . . 1 Special Weapon . | . . . Impact Weapon . | . . . Slashing Weapon . | . . . Piercing Weapon . | . . . Special Melee Weapon . | . . . Unidentified Prototypes . | . . . Parts Lost 8 | . 1 7 Power 1 | . . 1 Propulsion 2 | . . 2 Utility 2 | . 1 1 Weapon 3 | . . 3 Highest Loss Streak 7 | . 1 7 To Critical Strikes . | . . . Average Slot Usage (%) 93 | . 92 93 Engine 13 | . 14 12 Treads 1 | . . 4 Leg 26 | . 28 22 Device 7 | . 5 12 Storage 16 | . 16 14 Energy Gun 26 | . 27 22 Naked Turns . | . . . Heaviest Build 17 | 14 17 16 Greatest Support 40 | 20 20 40 Greatest Overweight (x) . | . . . Average Overweight (x) . | . . . Largest Inventory Capacity 8 | 8 8 8 Average Capacity 7 | 6 8 8 Most Carried 8 | 6 8 8 Average Carried 7 | 3 7 7 Final Capacity 8 | 8 8 8 Final Carried 7 | 6 7 2 Class Distribution -------------------- 100% | Mutant Dominant Class ---------------- Mutant | -10/Materials Mutant | -10/Mines Resources | -11 -10 -10 ----------- Run | Scr Mat Min Matter Collected 359 | 167 168 24 Remotely . | . . . Salvage Created 257 | . 195 62 Parts 9 | . 9 . Haulers Intercepted . | . . . Recyclers Shooed . | . . . Parts Field Recycled . | . . . Retrieved Matter . | . . . Parts Self-Destructed . | . . . Prevented . | . . . Kills | -11 -10 -10 ------- Run | Scr Mat Min Combat Hostiles Destroyed 17 | . 5 12 Guns 5 | . 4 1 AOE 11 | . . 11 Classes Destroyed 2 | . 1 1 Grunt 5 | . 5 . Assembled 12 | . . 12 Best Kill Streak 12 | . 2 12 Combat Bots Only 12 | . 2 12 Max Kills in Single Turn 3 | . 1 3 Gunslinging . | . . . Exploded 3 | . . 3 Melee . | . . . Uniques/NPCs Destroyed . | . . . Combat | -11 -10 -10 -------- Run | Scr Mat Min Damage Taken 1080 | . 416 664 Core 265 | . 114 151 Absorbed by Shields . | . . . Redirected to Shielding 7 | . . 7 Core Remaining (%) 100 | 100 . . Volleys Fired 34 | . 25 9 Largest 2 | . 2 2 Hottest 115 | . 105 115 Shots Fired 65 | . 50 15 Gun 59 | . 50 9 Cannon . | . . . Launcher 6 | . . 6 Special . | . . . Kinetic . | . . . Thermal 53 | . 44 9 Explosive 6 | . . 6 Electromagnetic 6 | . 6 . Robot Hit Streak 6 | . 6 4 Robot Miss Streak 3 | . 3 1 Penetration Max . | . . . Secondary Targets . | . . . Shots Hit Robots 40 | . 31 9 Core Hits 35 | . 9 26 Critical Kills . | . . . Critical Parts Destroyed . | . . . Critical Strikes 2 | . 1 1 Burn 2 | . 1 1 Melee Attacks . | . . . Impact . | . . . Slashing . | . . . Piercing . | . . . Sneak Attacks . | . . . Combat Hostiles . | . . . Follow-up Attacks . | . . . Damage Inflicted 1048 | . 408 640 Guns 459 | . 408 51 Cannons . | . . . Explosions 589 | . . 589 Melee . | . . . Ramming . | . . . Kinetic . | . . . Thermal 429 | . 378 51 Explosive 589 | . . 589 Electromagnetic 30 | . 30 . Impact . | . . . Slashing . | . . . Piercing . | . . . Highest Corruption . | . . . Average Corruption . | . . . Corruption Purged . | . . . Corruption Blocked . | . . . Overload Shots . | . . . Overflow Damage 1 | . . 1 Projectiles . | . . . Explosions 1 | . . 1 Melee . | . . . Knockbacks . | . . . Impact . | . . . Kinetic . | . . . Secondary . | . . . Self-Inflicted Damage 110 | . . 110 Shots 3 | . . 3 Rammed . | . . . Targets Rammed . | . . . Kicked . | . . . Crushed . | . . . Highest Temperature 388 | . 388 132 Average Temperature 150 | . 170 44 Received Heat Transfer 251 | . 231 20 Effects 2 | . 2 . Shutdowns 1 | . 1 . Energy Bleed 1 | . 1 . Siege Activations . | . . . Robots Corrupted . | . . . Combat Hostiles . | . . . Parts Fried . | . . . Impact Corruptions . | . . . Robots Melted 1 | . 1 . Combat Hostiles 1 | . 1 . Parts Melted 1 | . 1 . Heat Transferred 1202 | . 992 210 Parts Sabotaged . | . . . Parts Stolen . | . . . Parts Stripped . | . . . Power Chain Reactions . | . . . Missiles Intercepted . | . . . Alert | -11 -10 -10 ------- Run | Scr Mat Min Peak Influence 190 | . 190 62 Initial 7 | . . 7 Average 49 | . 72 14 Maximum Alert Level . | . . . Low Security (%) 100 | 100 100 100 Level 1 . | . . . Level 2 . | . . . Level 3 . | . . . Level 4 . | . . . Level 5 . | . . . High Security . | . . . Max Security . | . . . Squads Dispatched 1 | . 1 . Investigation . | . . . Extermination . | . . . Reinforcement 1 | . 1 . Assault . | . . . Garrison . | . . . Intercept . | . . . Searches Triggered . | . . . Construction Impeded . | . . . Haulers Reinforced . | . . . Active Scanning Responses . | . . . Cargo Convoy Interrupts . | . . . Stealth | -11 -10 -10 --------- Run | Scr Mat Min Distress Signals . | . . . Communications Jammed . | . . . Distress Signals . | . . . Times Spotted 25 | . 10 15 Peak Tracking Total 12 | . 3 12 Tactical Retreats 1 | . 1 . Traps | -11 -10 -10 ------- Run | Scr Mat Min Traps Triggered . | . . . Indirectly . | . . . Trap Hack Attempts . | . . . Triggered . | . . . Disarmed . | . . . Reprogrammed . | . . . Reused . | . . . Traps Extracted . | . . . Installed . | . . . Triggered . | . . . Machines | -11 -10 -10 ---------- Run | Scr Mat Min Machines Disabled 1 | . 1 . Max in Single Turn 1 | . 1 . Machines Sabotaged . | . . . Garrisons Compromised . | . . . Overloaded Fab Kills . | . . . Hacking | -11 -10 -10 --------- Run | Scr Mat Min Machines Accessed 2 | . 2 . Terminals 2 | . 2 . Fabricators . | . . . Repair Stations . | . . . Recycling Units . | . . . Scanalyzers . | . . . Garrison Access . | . . . Total Hacks 9 | . 9 . Successful 4 | . 4 . Failed 5 | . 5 . Catastrophic 1 | . 1 . Database Lockouts . | . . . Manual 3 | . 3 . Terminals 9 | . 9 . Fabricators . | . . . Repair Stations . | . . . Recycling Units . | . . . Scanalyzers . | . . . Garrison Access . | . . . Terminal Hacks 4 | . 4 . Alert Level 1 | . 1 . Locate Traps 1 | . 1 . Hauler Manifests 1 | . 1 . Zone Layout 1 | . 1 . Fabricator Hacks . | . . . Repair Station Hacks . | . . . Recycling Unit Hacks . | . . . Scanalyzer . | . . . Garrison Access Hacks . | . . . Unauthorized Hacks . | . . . Terminals . | . . . Fabricators . | . . . Repair Stations . | . . . Recycling Units . | . . . Scanalyzers . | . . . Garrison Access . | . . . Data Cores Recovered . | . . . Used . | . . . Hacking Detections 2 | . 2 . Full Trace Events . | . . . Feedback Events . | . . . Feedback Blocked . | . . . Robot Schematics Acquired . | . . . Robots Built . | . . . Authchips . | . . . Time . | . . . Total Robot Build Rating . | . . . Part Schematics Acquired . | . . . Parts Built . | . . . Authchips . | . . . Time . | . . . Total Part Build Rating . | . . . Parts Repaired . | . . . Time . | . . . Parts Recycled . | . . . Recycled Matter . | . . . Retrieved Matter . | . . . Retrieved Components . | . . . Parts Scanalyzed . | . . . Part Schematics Acquired . | . . . Parts Damaged . | . . . Bothacking | -11 -10 -10 ------------ Run | Scr Mat Min Used RIF Installer . | . . . Robots Hacked . | . . . Non-combat . | . . . Combat . | . . . Robot Hacks Applied . | . . . Relay Couplers Released . | . . . Fabnet Peak Effective % . | . . . Robots Rewired . | . . . Allies Hacked . | . . . Hacks Repelled . | . . . Allies | -11 -10 -10 -------- Run | Scr Mat Min Total Allies . | . . . Largest Group . | . . . Highest-Rated Group . | . . . Highest-Rated Ally . | . . . Total Orders . | . . . Ally Attacks . | . . . Total Damage . | . . . Kills . | . . . Allies Corrupted . | . . . Allies Melted . | . . . Intel | -11 -10 -10 ------- Run | Scr Mat Min Robot Analysis Total . | . . . Derelict Logs Recovered . | . . . Drone Launches . | . . . Drone Recoveries . | . . . Exploration | -11 -10 -10 ------------- Run | Scr Mat Min Turns Passed 752 | 76 467 209 Spaces Moved 453 | 53 261 139 Core 3 | 3 . . Treads 12 | . . 12 Legs 438 | 50 261 127 Wheels . | . . . Hover . | . . . Flight . | . . . Fastest Speed 50 | 50 120 120 Average Speed 120 | 116 120 123 Slowest Speed 160 | 120 120 160 Overloaded Moves . | . . . Propulsion Burnouts . | . . . Robots Hopped . | . . . Cave-ins Triggered . | . . . Exploration Rate (%) 32 | 4 49 43 Regions Visited 2 Branch Regions 1 Pre-discovered Areas . | . . . Known Exits Taken . | . . . Unknown Exits Taken 2 | 1 1 . Scrap Searched 1 | . . 1 Spaces Dug . | . . . Terrain Destroyed 40 | . . 40 Melee . | . . . Projectile . | . . . AOE 40 | . . 40 Terrain Rammed . | . . . Walls Destroyed . | . . . Machines Disabled . | . . . Actions | -11 -10 -10 --------- Run | Scr Mat Min Total 597 | 64 372 161 Wait 53 | . 53 . Move 451 | 52 260 139 Hop . | . . . Pick Up 17 | 5 11 1 Fast Attach 10 | 6 2 2 Attach 7 | . 1 6 Detach 1 | . . 1 Swap 9 | 1 6 2 Drop 15 | . 14 1 Fire 34 | . 25 9 Melee . | . . . Ram . | . . . Kick . | . . . Crush . | . . . Escape Stasis . | . . . Rewire . | . . . Trap . | . . . Miscellaneous . | . . . Route ------- -11/Scrapyard -10/Materials (discovered 2 exits: [*Mat] / [*Min]) -10/Mines History --------- Turn | Location | Event 7 | -11/Scrapyard | Discovered new exit (range 16) 77 | -11/Scrapyard | Entered Materials 205 | -10/Materials | Discovered new exit (range 13) 306 | -10/Materials | Build established: Mutant 524 | -10/Materials | Discovered new exit (range 8) 544 | -10/Materials | Entered Mines 609 | -10/Mines | Met a Derelict bent on vengeance 682 | -10/Mines | Assembled infested the area 713 | -10/Mines | Core integrity fell below 50% 729 | -10/Mines | Core integrity fell below 20% 751 | -10/Mines | Destroyed 12 combat bots 753 | -10/Mines | Destroyed by as-94959 with Assembled Heavy Rifle Last Messages --------------- 00709_ Destroyed Asb. Hover Unit. 00709_ as-82474 destroyed. 00709_ as-09288 destroyed. 00711_ The unstable cave ceiling collapses. 00712_ as-70235 destroyed. 00713_ Aluminum Leg destroyed. 00713_ Sml. Laser destroyed. 00715_ as-40383 destroyed. 00715_ as-89230 destroyed. 00717_ as-33697 destroyed. 00722_ Grenade Launcher destroyed. 00728_ Med. Laser severed. 00730_ Seismic Detector destroyed. 00730_ as-63075 suffers critical hit (Burn). 00730_ as-63075 destroyed. 00730_ R-06 Scavenger collects Med. Laser. 00732_ Acquired 14 matter. 00733_ Particle Gun destroyed. 00739_ The unstable cave ceiling collapses. 00753_ Acquired Beamcaster. Map ----- +----------------------------------------------------+ | | | | | | | | | | | | | | | ?????????????????????????????????????????????????? | | ?????????????????????????????????????????????????? | | ?????????????????????????????????????????????????? | | ?????????????????????????????????????????????????? | | ?????????????????????????????############????????? | | ??????????????????????????#### # #????????? | | ??????????????????????????# #????????? | | ?????????????????? ######## #????????? | | ?????????????????? # #????????? | | ?????????????????? a % a % #????????? | | ???????????????????????## a # ##???????? | | ????????????????????????# #???????? | | ????????????????????????# < ### # #???????? | | ????????????????????????# ##?#### #???????? | | ????????????????????????# ##????# #???????? | | ????????????????????????# ##?????# ##??????? | | ????????????????????????#%% ##??????## #??????? | | ???????????????????######%* ##????????# ##?????? | | ???????????????????# @ #?????????# ####??? | | ???????????????????# ### #????????## ##?? | | ???????????????????????# ##????????# #?? | | ??????????????????????? #?????????# #?? | | ?????????????????????? ##?????????## #?? | | ?????????????????????## a#???????????##### #?? | | ??????????????????????## #???????????????## #?? | | ???????????????????????# #????????????????# #?? | | ??????????????????????? ????????????????# #?? | | ??????????????????????? ???????????????## #?? | | ?????????????????????? ?????????####### ##? | | ?????????????????????? ????????## #? | | ?????????????????????? ????????# #? | | ?????????????????????? ????????# #? | | ?????????????????????? ????????## ####? | | ???????????????????????### ?????????## ##???? | | ????????????????????????????????????## #????? | | ???????????????????????????????????## ##???? | | ??????????????????????????????????## ##??? | | ??????????????????????????????????# ##?? | | ??????????????????????????????????# ## ##? | | ??????????????????????????????????##??###### ## | | ???????????????????????????????????????????## # | | ??????????????????????????????????????? #??## # | | ??????????????????????????????????????? #?## # | +----------------------------------------------------+ Best States ------------- Heat Dissipation 25 Energy Generation 10 Energy Capacity 400 Matter Stores 291 Matter Capacity 400 Sight Range 16 Terrain Scan Density 10 Utility Shielding 33 Evasion (%) 55 Recoil Reduction 2 Item Schematics ----------------- None Robot Schematics ------------------ None Fabricated ------------ Nothing Alien Tech Used ----------------- None Achievements -------------- None Challenges ------------ None Game ------ Seed ScanSmartbombSink Manual? 0 Play Time 00:09:19 Cumulative 34.4 hours Start 2022.03.29 @ 13:26:41 End 2022.03.29 @ 13:34:00 Sessions 1 Manual Loads 0 Difficulty Rogue Special Mode None Game No. 29 Rogue 29 Adventurer 0 Explorer 0 Win Type - Total 1 Types 1/0/0/0/0/0/0/0/0 Lore% 46 Gallery% 45 Achievement% 43 Wizard Run 0 Options --------- ASCII 0 Keyboard 1 Movement Vi Keybinds 0 Fullscreen 2 Font 24/Proggy Map View 76x50 Tactical HUD 1 Map Filters NONE Filters NONE Steam 1 RUN: 1daf5854-5e36-4b90-a208-925d3dd0799d